[Event "FIDE Womens Grand Prix 2019-20"]
[Site "Skolkovo"]
[Date "2019.09.12"]
[Round "2.1"]
[White "Ju, Wenjun"]
[Black "Harika, Dronavalli"]
[Result "1/2-1/2"]
[ECO "E70"]
[WhiteElo "2576"]
[BlackElo "2503"]
[Annotator "ChessBase"]
[PlyCount "130"]
[EventDate "2019.09.11"]
[EventType "tourn"]
[EventCountry "RUS"]
[SourceTitle "playchess.com"]
[Source "ChessBase"]
[SourceQuality "1"]
[TimeControl "40/5400+30:1800+30"]

1. d4 {[%emt 0:00:00]} Nf6 {[%emt 0:00:35]} 2. c4 {[%emt 0:00:00]} g6 {[%emt 0:00:10]} 3. Nc3 {[%emt 0:00:05]} Bg7 {[%emt 0:00:06]} 4. e4 {[%emt 0:00:05]} d6 {[%emt 0:00:04]} 5. Bd3 {[%emt 0:00:04]} O-O {[%emt 0:00:55]} 6. Nge2 {[%emt 0:00:04]} Nc6 {[%emt 0:00:26]} 7. O-O {[%emt 0:00:06]} e5 {[%emt 0:00:10]} 8. d5 {[%emt 0:00:25]} Nd4 {[%emt 0:00:25]} 9. Nxd4 {[%emt 0:01:06]} exd4 {[%emt 0:00:07]} 10. Ne2 {[%emt 0:00:02]} Nd7 {[%emt 0:09:13]} 11. Bc2 {[%emt 0:21:25]} Ne5 {[%emt 0:02:40]} 12. Nxd4 {[%emt 0:02:52]} Nxc4 {[%emt 0:00:14]} 13. Rb1 {[%emt 0:00:14]} Ne5 {[%emt 0:17:26]} 14. b3 {[%emt 0:02:35]} c5 {[%emt 0:04:52]} 15. dxc6 {[%emt 0:06:43]} bxc6 {[%emt 0:04:02]} 16. Bb2 {[%emt 0:03:34]} c5 {[%emt 0:13:58]} 17. Ne2 {[%emt 0:00:42]} Ba6 {[%emt 0:00:05]} 18. h3 {[%emt 0:11:32]} Qe7 {[%emt 0:08:58]} 19. Re1 {[%emt 0:06:05]} Bxe2 {[%emt 0:00:06]} 20. Qxe2 {[%emt 0:01:55]} Nc6 {[%emt 0:00:04]} 21. Bd3 {[%emt 0:07:18]} Bxb2 {[%emt 0:04:01]} 22. Qxb2 {[%emt 0:00:03]} a5 {[%emt 0:04:57]} 23. Bc4 {[%emt 0:00:04]} Qe5 {[%emt 0:06:52]} 24. Qxe5 {[%emt 0:06:01]} Nxe5 {[%emt 0:00:03]} 25. Red1 {[%emt 0:04:10]} Rfb8 {[%emt 0:03:29]} 26. Rbc1 {[%emt 0:00:11]} Nxc4 {[%emt 0:03:30]} 27. Rxc4 {[%emt 0:00:06]} Rb6 {[%emt 0:01:52]} 28. f4 {[%emt 0:07:21]} a4 {[%emt 0:01:15]} 29. bxa4 {[%emt 0:00:06]} Rba6 {[%emt 0:00:12]} 30. a5 {[%emt 0:01:42]} Rxa5 {[%emt 0:01:17]} 31. Rxd6 {[%emt 0:00:05]} Rxa2 {[%emt 0:04:42]} 32. Rxc5 {[%emt 0:02:33]} R8a4 {[%emt 0:00:34]} 33. f5 {[%emt 0:06:43]} Rxe4 {[%emt 0:00:09]} 34. f6 {[%emt 0:00:52]} Ra8 {[%emt 0:00:29]} 35. Rc7 {[%emt 0:00:59]} h6 {[%emt 0:01:42]} 36. Kf2 {[%emt 0:00:45]} Rf4+ {[%emt 0:01:25]} 37. Kg3 {[%emt 0:05:07]} g5 {[%emt 0:00:09]} 38. Rcd7 {[%emt 0:01:31]} Rf8 {[%emt 0:00:36]} 39. Rd4 {[%emt 0:01:25]} Rxf6 {[%emt 0:01:05]} 40. h4 {[%emt 0:00:00]} Kg7 {[%emt 0:00:00]} 41. hxg5 {[%emt 0:00:59]} Rg6 {[%emt 0:01:13]} 42. Rf4 {[%emt 0:01:52]} Rxg5+ {[%emt 0:00:52]} 43. Kf3 {[%emt 0:00:49]} Kg6 {[%emt 0:00:28]} 44. Rd6+ {[%emt 0:00:06]} f6 {[%emt 0:00:16]} 45. Rc6 {[%emt 0:00:20]} h5 {[%emt 0:00:59]} 46. Rd6 {[%emt 0:00:09]} Ra5 {[%emt 0:00:14]} 47. Kg3 {[%emt 0:01:59]} Kg5 {[%emt 0:00:47]} 48. Rfd4 {[%emt 0:00:26]} Re5 {[%emt 0:00:35]} 49. Rd8 {[%emt 0:00:18]} Rxd8 {[%emt 0:00:32]} 50. Rxd8 {[%emt 0:00:05]} Re3+ {[%emt 0:00:05]} 51. Kf2 {[%emt 0:00:15]} Re5 {[%emt 0:00:16]} 52. g3 {[%emt 0:00:53]} Kg4 {[%emt 0:00:44]} 53. Rd4+ {[%emt 0:00:03]} Kg5 {[%emt 0:00:07]} 54. Kf3 {[%emt 0:00:06]} Ra5 {[%emt 0:00:12]} 55. Rc4 {[%emt 0:00:16]} f5 {[%emt 0:00:19]} 56. Rd4 {[%emt 0:00:03]} Ra3+ {[%emt 0:00:05]} 57. Kf2 {[%emt 0:00:10]} Rc3 {[%emt 0:00:36]} 58. Rd8 {[%emt 0:00:30]} Rc2+ {[%emt 0:01:08]} 59. Kf3 {[%emt 0:00:03]} Rc3+ {[%emt 0:00:04]} 60. Kf2 {[%emt 0:00:03]} Kf6 {[%emt 0:00:28]} 61. Rh8 {[%emt 0:01:01]} Kg6 {[%emt 0:00:17]} 62. Rg8+ {[%emt 0:00:07]} Kf6 {[%emt 0:00:20]} 63. Rh8 {[%emt 0:00:04]} Kg6 {[%emt 0:00:07]} 64. Rg8+ {[%emt 0:00:02]} Kf6 {[%emt 0:00:10]} 65. Rh8 {[%emt 0:00:04]} Kg6 {[%emt 0:00:04]} 1/2-1/2

[Event "FIDE Womens Grand Prix 2019-20"]
[Site "Skolkovo"]
[Date "2019.09.12"]
[Round "2.2"]
[White "Sebag, Marie"]
[Black "Koneru, Humpy"]
[Result "1/2-1/2"]
[ECO "C42"]
[WhiteElo "2450"]
[BlackElo "2560"]
[Annotator "ChessBase"]
[PlyCount "52"]
[EventDate "2019.09.11"]
[EventType "tourn"]
[EventCountry "RUS"]
[SourceTitle "playchess.com"]
[Source "ChessBase"]
[SourceQuality "1"]
[TimeControl "40/5400+30:1800+30"]

1. e4 {[%emt 0:00:00]} e5 {[%emt 0:00:00]} 2. Nf3 {[%emt 0:00:00]} Nf6 {[%emt 0:00:00]} 3. Nxe5 {[%emt 0:00:28]} d6 {[%emt 0:00:00]} 4. Nf3 {[%emt 0:00:13]} Nxe4 {[%emt 0:00:05]} 5. d4 {[%emt 0:00:27]} d5 {[%emt 0:00:09]} 6. Bd3 {[%emt 0:00:37]} Bd6 {[%emt 0:00:17]} 7. O-O {[%emt 0:00:57]} O-O {[%emt 0:00:07]} 8. c4 {[%emt 0:04:44]} c6 {[%emt 0:00:15]} 9. Re1 {[%emt 0:01:37]} Bf5 {[%emt 0:06:38]} 10. Qb3 {[%emt 0:06:58]} Na6 {[%emt 0:00:50]} 11. Nc3 {[%emt 0:05:54]} dxc4 {[%emt 0:03:49]} 12. Bxc4 {[%emt 0:12:33]} Nxc3 {[%emt 0:01:04]} 13. bxc3 {[%emt 0:01:09]} b5 {[%emt 0:01:30]} 14. Bf1 {[%emt 0:02:04]} Nc7 {[%emt 0:06:25]} 15. Bg5 {[%emt 0:05:55]} Qc8 {[%emt 0:03:51]} 16. c4 {[%emt 0:07:14]} Be6 {[%emt 0:05:18]} 17. Qc2 {[%emt 0:05:44]} bxc4 {[%emt 0:07:22]} 18. Bxc4 {[%emt 0:00:20]} Nd5 {[%emt 0:04:18]} 19. Bd2 {[%emt 0:02:53]} h6 {[%emt 0:08:50]} 20. Rac1 {[%emt 0:04:07]} Rb8 {[%emt 0:09:54]} 21. Bb3 {[%emt 0:03:21]} Ba3 {[%emt 0:02:08]} 22. Rcd1 {[%emt 0:03:04]} Bf5 {[%emt 0:08:56]} 23. Qc4 {[%emt 0:00:21]} Bg4 {[%emt 0:03:58]} 24. Qd3 {[%emt 0:00:47]} Bf5 {[%emt 0:01:00]} 25. Qc4 {[%emt 0:00:08]} Bg4 {[%emt 0:00:10]} 26. Qd3 {[%emt 0:00:08]} Bf5 {[%emt 0:00:45]} 1/2-1/2

[Event "FIDE Womens Grand Prix 2019-20"]
[Site "Skolkovo"]
[Date "2019.09.12"]
[Round "2.3"]
[White "Kashlinskaya, Alina"]
[Black "Lagno, Kateryna"]
[Result "1/2-1/2"]
[ECO "A85"]
[WhiteElo "2487"]
[BlackElo "2545"]
[Annotator "ChessBase"]
[PlyCount "78"]
[EventDate "2019.09.11"]
[EventType "tourn"]
[EventCountry "RUS"]
[SourceTitle "playchess.com"]
[Source "ChessBase"]
[SourceQuality "1"]
[TimeControl "40/5400+30:1800+30"]

1. d4 {[%emt 0:00:00]} f5 {[%emt 0:00:00]} 2. c4 {[%emt 0:01:51]} Nf6 {[%emt 0:00:35]} 3. Nc3 {[%emt 0:00:16]} e6 {[%emt 0:00:14]} 4. Nf3 {[%emt 0:00:13]} Bb4 {[%emt 0:00:15]} 5. Qb3 {[%emt 0:00:27]} c5 {[%emt 0:00:24]} 6. Bg5 {[%emt 0:02:53]} O-O {[%emt 0:08:22]} 7. Bxf6 {[%emt 0:18:24]} Qxf6 {[%emt 0:00:28]} 8. e3 {[%emt 0:00:10]} Nc6 {[%emt 0:04:47]} 9. a3 {[%emt 0:00:49]} Bxc3+ {[%emt 0:06:57]} 10. Qxc3 {[%emt 0:01:01]} d6 {[%emt 0:00:44]} 11. Be2 {[%emt 0:09:36]} e5 {[%emt 0:02:38]} 12. d5 {[%emt 0:06:29]} Ne7 {[%emt 0:12:44]} 13. b4 {[%emt 0:00:52]} b6 {[%emt 0:00:21]} 14. bxc5 {[%emt 0:01:47]} bxc5 {[%emt 0:00:04]} 15. Rb1 {[%emt 0:00:12]} g5 {[%emt 0:01:39]} 16. Nd2 {[%emt 0:04:25]} Ng6 {[%emt 0:08:51]} 17. O-O {[%emt 0:05:22]} g4 {[%emt 0:06:36]} 18. Qa5 {[%emt 0:08:57]} e4 {[%emt 0:22:45]} 19. Rb3 {[%emt 0:03:34]} Ne5 {[%emt 0:00:06]} 20. Rfb1 {[%emt 0:00:32]} f4 {[%emt 0:00:20]} 21. Nxe4 {[%emt 0:02:47]} Qg6 {[%emt 0:00:11]} 22. Nd2 {[%emt 0:04:21]} f3 {[%emt 0:05:07]} 23. Bf1 {[%emt 0:00:21]} fxg2 {[%emt 0:08:30]} 24. Bxg2 {[%emt 0:00:37]} Nf3+ {[%emt 0:00:07]} 25. Kh1 {[%emt 0:00:31]} Nh4 {[%emt 0:00:20]} 26. Be4 {[%emt 0:09:33]} Bf5 {[%emt 0:00:12]} 27. Bxf5 {[%emt 0:00:05]} Qxf5 {[%emt 0:00:07]} 28. Rg1 {[%emt 0:00:26]} Qxf2 {[%emt 0:05:49]} 29. Rxg4+ {[%emt 0:00:11]} Ng6 {[%emt 0:00:58]} 30. Rg2 {[%emt 0:01:38]} Qe1+ {[%emt 0:00:22]} 31. Rg1 {[%emt 0:00:03]} Qe2 {[%emt 0:00:22]} 32. Qc7 {[%emt 0:04:40]} Rf7 {[%emt 0:02:02]} 33. Qxd6 {[%emt 0:00:37]} Qxd2 {[%emt 0:00:16]} 34. Rxg6+ {[%emt 0:00:35]} hxg6 {[%emt 0:00:04]} 35. Qxg6+ {[%emt 0:00:05]} Rg7 {[%emt 0:00:27]} 36. Qe6+ {[%emt 0:00:02]} Rf7 {[%emt 0:01:32]} 37. Qg6+ {[%emt 0:00:06]} Rg7 {[%emt 0:02:12]} 38. Qe6+ {[%emt 0:00:07]} Kh7 {[%emt 0:00:18]} 39. Qh3+ {[%emt 0:00:47]} Kg8 {[%emt 0:00:34]} 1/2-1/2

[Event "FIDE Womens Grand Prix 2019-20"]
[Site "Skolkovo"]
[Date "2019.09.12"]
[Round "2.4"]
[White "Kosteniuk, Alexandra"]
[Black "Gunina, Valentina"]
[Result "0-1"]
[ECO "B11"]
[WhiteElo "2495"]
[BlackElo "2502"]
[Annotator "ChessBase"]
[PlyCount "112"]
[EventDate "2019.09.11"]
[EventType "tourn"]
[EventCountry "RUS"]
[SourceTitle "playchess.com"]
[Source "ChessBase"]
[SourceQuality "1"]
[TimeControl "40/5400+30:1800+30"]

1. e4 {[%emt 0:00:00]} c6 {[%emt 0:00:00]} 2. Nc3 {[%emt 0:00:00]} d5 {[%emt 0:00:00]} 3. Nf3 {[%emt 0:00:00]} Bg4 {[%emt 0:00:00]} 4. h3 {[%emt 0:00:09]} Bxf3 {[%emt 0:00:13]} 5. Qxf3 {[%emt 0:00:05]} Nf6 {[%emt 0:00:21]} 6. g3 {[%emt 0:00:40]} e6 {[%emt 0:08:49]} 7. Bg2 {[%emt 0:00:16]} Nbd7 {[%emt 0:00:40]} 8. O-O {[%emt 0:00:43]} h5 {[%emt 0:07:17]} 9. exd5 {[%emt 0:20:07]} cxd5 {[%emt 0:01:28]} 10. Qe2 {[%emt 0:01:11]} h4 {[%emt 0:10:25]} 11. g4 {[%emt 0:04:43]} Be7 {[%emt 0:01:23]} 12. d4 {[%emt 0:09:34]} Qb6 {[%emt 0:01:37]} 13. Rd1 {[%emt 0:11:45]} Rc8 {[%emt 0:02:20]} 14. a4 {[%emt 0:03:15]} a6 {[%emt 0:02:53]} 15. a5 {[%emt 0:01:22]} Qc7 {[%emt 0:00:21]} 16. Bd2 {[%emt 0:08:46]} g6 {[%emt 0:10:40]} 17. Re1 {[%emt 0:03:47]} Nb8 {[%emt 0:24:01]} 18. Bg5 {[%emt 0:03:59]} Kf8 {[%emt 0:05:01]} 19. Na4 {[%emt 0:17:05]} Nc6 {[%emt 0:07:20]} 20. Nb6 {[%emt 0:01:13]} Rd8 {[%emt 0:03:01]} 21. Qd2 {[%emt 0:03:04]} Kg7 {[%emt 0:02:07]} 22. Bf4 {[%emt 0:00:43]} Bd6 {[%emt 0:00:09]} 23. Bxd6 {[%emt 0:00:17]} Qxd6 {[%emt 0:01:42]} 24. Ra3 {[%emt 0:00:46]} Rhe8 {[%emt 0:01:57]} 25. Rb3 {[%emt 0:01:43]} Re7 {[%emt 0:01:04]} 26. Rbe3 {[%emt 0:03:03]} Rc7 {[%emt 0:01:45]} 27. Rb3 {[%emt 0:00:15]} Re7 {[%emt 0:01:29]} 28. Rbe3 {[%emt 0:00:04]} Rde8 {[%emt 0:01:33]} 29. Rd1 {[%emt 0:01:40]} Rd8 {[%emt 0:02:04]} 30. b3 {[%emt 0:00:18]} Rc7 {[%emt 0:00:40]} 31. Qe1 {[%emt 0:01:10]} Nb4 {[%emt 0:01:04]} 32. c4 {[%emt 0:03:05]} Nc2 {[%emt 0:00:42]} 33. c5 {[%emt 0:00:32]} Qf4 {[%emt 0:00:46]} 34. Qe2 {[%emt 0:00:44]} Nxe3 {[%emt 0:00:44]} 35. fxe3 {[%emt 0:00:02]} Qg5 {[%emt 0:00:19]} 36. b4 {[%emt 0:00:59]} Re7 {[%emt 0:00:15]} 37. e4 {[%emt 0:00:24]} dxe4 {[%emt 0:00:48]} 38. Nc4 {[%emt 0:00:20]} Nd5 {[%emt 0:00:23]} 39. Rf1 {[%emt 0:00:53]} e3 {[%emt 0:01:20]} 40. Nd6 {[%emt 0:00:00]} f5 {[%emt 0:00:00]} 41. Kh1 {[%emt 0:07:02]} fxg4 {[%emt 0:09:59]} 42. Ne4 {[%emt 0:00:16]} Qh6 {[%emt 0:00:59]} 43. Qxg4 {[%emt 0:01:06]} Rf8 {[%emt 0:01:37]} 44. Rg1 {[%emt 0:02:47]} Nf4 {[%emt 0:05:33]} 45. Bf1 {[%emt 0:02:33]} Qh5 {[%emt 0:04:03]} 46. Be2 {[%emt 0:00:49]} Qxg4 {[%emt 0:00:29]} 47. Bxg4 {[%emt 0:00:03]} Nd3 {[%emt 0:00:28]} 48. Kg2 {[%emt 0:01:41]} Rf4 {[%emt 0:00:34]} 49. Bf3 {[%emt 0:00:19]} Nxb4 {[%emt 0:00:33]} 50. Nd6 {[%emt 0:03:44]} Nc2 {[%emt 0:00:24]} 51. Be4 {[%emt 0:00:52]} Nxd4 {[%emt 0:00:23]} 52. Re1 {[%emt 0:02:04]} Rf2+ {[%emt 0:01:13]} 53. Kh1 {[%emt 0:00:13]} Nf3 {[%emt 0:01:52]} 54. Bxf3 {[%emt 0:00:23]} Rxf3 {[%emt 0:00:03]} 55. Kg2 {[%emt 0:00:05]} Rf2+ {[%emt 0:00:25]} 56. Kg1 {[%emt 0:00:03]} Rc2 {[%emt 0:00:15]} 0-1

[Event "FIDE Womens Grand Prix 2019-20"]
[Site "Skolkovo"]
[Date "2019.09.12"]
[Round "2.5"]
[White "Goryachkina, Aleksandra"]
[Black "Paehtz, Elisabeth"]
[Result "1/2-1/2"]
[ECO "D10"]
[WhiteElo "2564"]
[BlackElo "2479"]
[Annotator "ChessBase"]
[PlyCount "160"]
[EventDate "2019.09.11"]
[EventType "tourn"]
[EventCountry "RUS"]
[SourceTitle "playchess.com"]
[Source "ChessBase"]
[SourceQuality "1"]
[TimeControl "40/5400+30:1800+30"]

1. d4 {[%emt 0:00:00]} d5 {[%emt 0:00:00]} 2. c4 {[%emt 0:00:00]} c6 {[%emt 0:00:00]} 3. cxd5 {[%emt 0:01:47]} cxd5 {[%emt 0:00:00]} 4. Bf4 {[%emt 0:00:10]} Nc6 {[%emt 0:00:00]} 5. e3 {[%emt 0:00:11]} Nf6 {[%emt 0:00:04]} 6. Bd3 {[%emt 0:01:54]} Bg4 {[%emt 0:04:31]} 7. Ne2 {[%emt 0:01:45]} Rc8 {[%emt 0:03:30]} 8. h3 {[%emt 0:07:32]} Bh5 {[%emt 0:03:00]} 9. O-O {[%emt 0:02:50]} e6 {[%emt 0:01:35]} 10. Qb3 {[%emt 0:06:08]} Nb4 {[%emt 0:18:15]} 11. Bb5+ {[%emt 0:03:58]} Nd7 {[%emt 0:01:38]} 12. a3 {[%emt 0:10:42]} Nc6 {[%emt 0:01:08]} 13. Nbc3 {[%emt 0:03:01]} Be7 {[%emt 0:05:37]} 14. Bh2 {[%emt 0:02:06]} Bg6 {[%emt 0:05:34]} 15. Nf4 {[%emt 0:04:20]} Nb6 {[%emt 0:09:22]} 16. Nxg6 {[%emt 0:04:22]} hxg6 {[%emt 0:00:10]} 17. Na4 {[%emt 0:00:29]} Nxa4 {[%emt 0:05:10]} 18. Qxa4 {[%emt 0:04:01]} a6 {[%emt 0:01:15]} 19. Bxc6+ {[%emt 0:01:42]} Rxc6 {[%emt 0:00:04]} 20. Rfc1 {[%emt 0:00:41]} Qb6 {[%emt 0:01:24]} 21. Rxc6 {[%emt 0:05:00]} Qxc6 {[%emt 0:00:04]} 22. Qd1 {[%emt 0:00:45]} Qb6 {[%emt 0:08:48]} 23. Qc2 {[%emt 0:01:10]} Kd7 {[%emt 0:07:34]} 24. Rc1 {[%emt 0:00:44]} Bd6 {[%emt 0:00:14]} 25. Bxd6 {[%emt 0:03:43]} Qxd6 {[%emt 0:01:27]} 26. Qb3 {[%emt 0:02:55]} Rb8 {[%emt 0:01:15]} 27. a4 {[%emt 0:02:52]} b5 {[%emt 0:08:21]} 28. Rc5 {[%emt 0:02:43]} Qb6 {[%emt 0:06:45]} 29. axb5 {[%emt 0:05:20]} axb5 {[%emt 0:00:03]} 30. Qb4 {[%emt 0:01:04]} Qa6 {[%emt 0:02:17]} 31. b3 {[%emt 0:02:00]} g5 {[%emt 0:02:18]} 32. Rc1 {[%emt 0:10:01]} Qd6 {[%emt 0:01:01]} 33. Qa5 {[%emt 0:00:21]} Qb6 {[%emt 0:00:53]} 34. Qc3 {[%emt 0:00:52]} b4 {[%emt 0:00:24]} 35. Qd3 {[%emt 0:00:52]} g6 {[%emt 0:00:47]} 36. Rc5 {[%emt 0:01:49]} Ke7 {[%emt 0:01:23]} 37. Qc2 {[%emt 0:00:38]} Kf6 {[%emt 0:01:09]} 38. Qa2 {[%emt 0:05:08]} Rb7 {[%emt 0:00:44]} 39. Qa8 {[%emt 0:01:02]} Rb8 {[%emt 0:00:44]} 40. Qa4 {[%emt 0:00:00]} Qb7 {[%emt 0:00:00]} 41. Qa5 {[%emt 0:05:16]} Qb6 {[%emt 0:07:27]} 42. Qxb6 {[%emt 0:05:33]} Rxb6 {[%emt 0:00:03]} 43. Rc7 {[%emt 0:00:13]} e5 {[%emt 0:09:16]} 44. dxe5+ {[%emt 0:00:37]} Kxe5 {[%emt 0:00:03]} 45. Rxf7 {[%emt 0:01:48]} Ke4 {[%emt 0:00:03]} 46. Rc7 {[%emt 0:03:38]} Kd3 {[%emt 0:00:17]} 47. Rc5 {[%emt 0:01:03]} Rf6 {[%emt 0:05:14]} 48. g4 {[%emt 0:03:33]} Ke2 {[%emt 0:03:54]} 49. Rxd5 {[%emt 0:05:45]} Rxf2 {[%emt 0:01:54]} 50. Rxg5 {[%emt 0:01:01]} Kf3 {[%emt 0:03:17]} 51. Rxg6 {[%emt 0:00:21]} Rb2 {[%emt 0:03:00]} 52. Rf6+ {[%emt 0:03:29]} Kg3 {[%emt 0:00:05]} 53. Kf1 {[%emt 0:00:39]} Rxb3 {[%emt 0:00:57]} 54. Ke2 {[%emt 0:00:28]} Rb2+ {[%emt 0:01:00]} 55. Kd3 {[%emt 0:00:01]} Kxh3 {[%emt 0:00:07]} 56. g5 {[%emt 0:01:00]} Rg2 {[%emt 0:01:04]} 57. Rb6 {[%emt 0:04:25]} Kg4 {[%emt 0:00:59]} 58. g6 {[%emt 0:00:34]} Kf5 {[%emt 0:00:40]} 59. Rxb4 {[%emt 0:02:45]} Kxg6 {[%emt 0:00:38]} 60. Rb6+ {[%emt 0:00:24]} Kf7 {[%emt 0:00:12]} 61. Ke4 {[%emt 0:00:10]} Rg5 {[%emt 0:00:19]} 62. Kf4 {[%emt 0:00:05]} Ra5 {[%emt 0:00:12]} 63. e4 {[%emt 0:00:07]} Ke7 {[%emt 0:00:05]} 64. Rh6 {[%emt 0:01:04]} Rb5 {[%emt 0:00:06]} 65. Rh7+ {[%emt 0:00:20]} Ke6 {[%emt 0:00:13]} 66. Ra7 {[%emt 0:00:19]} Rc5 {[%emt 0:00:28]} 67. Ra6+ {[%emt 0:00:21]} Ke7 {[%emt 0:00:05]} 68. Ke3 {[%emt 0:00:05]} Rb5 {[%emt 0:00:12]} 69. Kd3 {[%emt 0:00:10]} Rh5 {[%emt 0:00:19]} 70. Kc4 {[%emt 0:00:34]} Kd7 {[%emt 0:00:43]} 71. Ra7+ {[%emt 0:01:04]} Ke6 {[%emt 0:00:08]} 72. Ra8 {[%emt 0:00:11]} Ke7 {[%emt 0:00:44]} 73. Ra1 {[%emt 0:01:17]} Ke6 {[%emt 0:00:09]} 74. Rd1 {[%emt 0:00:19]} Re5 {[%emt 0:00:22]} 75. Kd4 {[%emt 0:00:16]} Ra5 {[%emt 0:00:14]} 76. Ke3 {[%emt 0:00:09]} Ke5 {[%emt 0:00:42]} 77. Rd3 {[%emt 0:00:02]} Rb5 {[%emt 0:00:07]} 78. Ra3 {[%emt 0:00:13]} Ke6 {[%emt 0:00:37]} 79. Kf4 {[%emt 0:00:37]} Ke7 {[%emt 0:00:15]} 80. Ra7+ {[%emt 0:01:47]} Ke6 {[%emt 0:00:06]} 1/2-1/2

[Event "FIDE Womens Grand Prix 2019-20"]
[Site "Skolkovo"]
[Date "2019.09.12"]
[Round "2.6"]
[White "Cramling, Pia"]
[Black "Stefanova, Antoaneta"]
[Result "1/2-1/2"]
[ECO "A33"]
[WhiteElo "2487"]
[BlackElo "2491"]
[Annotator "ChessBase"]
[PlyCount "113"]
[EventDate "2019.09.11"]
[EventType "tourn"]
[EventCountry "RUS"]
[SourceTitle "playchess.com"]
[Source "ChessBase"]
[SourceQuality "1"]
[TimeControl "40/5400+30:1800+30"]

1. Nf3 {[%emt 0:00:00]} Nf6 {[%emt 0:00:00]} 2. c4 {[%emt 0:00:05]} c5 {[%emt 0:00:00]} 3. Nc3 {[%emt 0:00:42]} Nc6 {[%emt 0:00:12]} 4. d4 {[%emt 0:01:50]} cxd4 {[%emt 0:00:36]} 5. Nxd4 {[%emt 0:00:04]} e6 {[%emt 0:00:29]} 6. a3 {[%emt 0:00:16]} Bc5 {[%emt 0:00:51]} 7. Nb3 {[%emt 0:00:20]} Bb6 {[%emt 0:00:26]} 8. c5 {[%emt 0:05:49]} Bc7 {[%emt 0:00:24]} 9. g3 {[%emt 0:00:20]} O-O {[%emt 0:03:20]} 10. Bg2 {[%emt 0:00:03]} Be5 {[%emt 0:01:41]} 11. O-O {[%emt 0:01:24]} b6 {[%emt 0:10:25]} 12. Be3 {[%emt 0:00:29]} Bxc3 {[%emt 0:07:25]} 13. bxc3 {[%emt 0:00:15]} Ba6 {[%emt 0:01:37]} 14. Rb1 {[%emt 0:26:42]} Nd5 {[%emt 0:14:22]} 15. Bxd5 {[%emt 0:07:11]} exd5 {[%emt 0:00:04]} 16. Re1 {[%emt 0:01:38]} Re8 {[%emt 0:30:09]} 17. Qxd5 {[%emt 0:04:00]} Re5 {[%emt 0:10:57]} 18. Qd2 {[%emt 0:12:35]} Rh5 {[%emt 0:06:13]} 19. cxb6 {[%emt 0:07:52]} axb6 {[%emt 0:00:08]} 20. Nc1 {[%emt 0:09:26]} Qe7 {[%emt 0:03:23]} 21. Nd3 {[%emt 0:00:54]} Na5 {[%emt 0:05:22]} 22. Bxb6 {[%emt 0:04:15]} Nc4 {[%emt 0:00:05]} 23. Qf4 {[%emt 0:00:13]} Rc8 {[%emt 0:01:53]} 24. Bd4 {[%emt 0:02:08]} Nxa3 {[%emt 0:01:12]} 25. Rb8 {[%emt 0:03:19]} Rb5 {[%emt 0:00:04]} 26. Rxc8+ {[%emt 0:02:46]} Bxc8 {[%emt 0:00:01]} 27. Qc7 {[%emt 0:02:49]} Qe8 {[%emt 0:00:09]} 28. Bc5 {[%emt 0:01:31]} Nc4 {[%emt 0:01:07]} 29. Bd4 {[%emt 0:01:14]} Na3 {[%emt 0:01:08]} 30. Ne5 {[%emt 0:01:17]} f6 {[%emt 0:00:34]} 31. Nc4 {[%emt 0:00:33]} Nxc4 {[%emt 0:00:27]} 32. Qxc4+ {[%emt 0:00:13]} d5 {[%emt 0:00:02]} 33. Qc7 {[%emt 0:01:35]} Bh3 {[%emt 0:00:21]} 34. f3 {[%emt 0:00:39]} h5 {[%emt 0:00:22]} 35. Kf2 {[%emt 0:00:21]} Qe6 {[%emt 0:00:35]} 36. Qf4 Bf5 {[%emt 0:00:31]} 37. Ra1 {[%emt 0:02:08]} Rb2 {[%emt 0:00:44]} 38. Qe3 {[%emt 0:00:16]} Qxe3+ {[%emt 0:00:57]} 39. Kxe3 {[%emt 0:00:12]} Bd7 {[%emt 0:00:16]} 40. Kf2 {[%emt 0:00:00]} Rb7 {[%emt 0:00:00]} 41. Rd1 {[%emt 0:13:23]} Bb5 {[%emt 0:07:46]} 42. Rd2 {[%emt 0:02:25]} Bc4 {[%emt 0:00:25]} 43. e4 {[%emt 0:00:38]} dxe4 {[%emt 0:02:43]} 44. fxe4 {[%emt 0:00:05]} Kf7 {[%emt 0:04:10]} 45. Bc5 {[%emt 0:01:27]} Rc7 {[%emt 0:02:10]} 46. Bb4 {[%emt 0:00:57]} Be6 {[%emt 0:01:01]} 47. Ke3 {[%emt 0:02:04]} Rd7 {[%emt 0:01:13]} 48. Bd6 {[%emt 0:02:20]} Bc4 {[%emt 0:01:42]} 49. Rd4 {[%emt 0:00:48]} Ba6 {[%emt 0:00:11]} 50. h4 {[%emt 0:08:56]} Ke6 {[%emt 0:01:26]} 51. Bb8 {[%emt 0:00:49]} Rxd4 52. cxd4 {[%emt 0:00:24]} Bf1 {[%emt 0:02:25]} 53. d5+ {[%emt 0:00:28]} Kf7 {[%emt 0:00:19]} 54. Kf3 {[%emt 0:01:11]} Bh3 {[%emt 0:03:19]} 55. Ba7 {[%emt 0:00:08]} Ke8 {[%emt 0:00:22]} 56. Bc5 {[%emt 0:00:24]} Kf7 {[%emt 0:00:06]} 57. Kf4 1/2-1/2